{"text_format":"1","workbook":"xlsx","n_sheets":3,"sheets":["Instructions","WETA Budget and Work Plan","Solicitation 2"],"not_rendered":{"charts":0,"images":0,"macros":1,"external_links":0,"defined_names":0,"comments":0,"pivot_tables":0},"unopened":[],"bounds":{"document_bytes":16777216,"sheet_cells":100000,"rows_first":2000,"rows_last":500,"rows_between":2000,"halvings":0,"cell_chars":16384,"cell_head_chars":4096},"cells_cut":0,"cells_raw":0,"read":"whole","date_system":"1900"}

{"sheet":"Instructions","index":0,"n_rows":5,"n_cols":2,"rows_kept":5,"cut":false,"hidden":false,"merged":[]}
[]
[null," WATER EFFICENCY TECHNICAL ASSISTANCE (WETA)\nWork Plan and Budget Template Instructions"]
[]
[null,"Use the Work Plan columns in to list the technical assistance activities that will be performed to achieve the objectives. The program objectives have been pre-filled to align with the objectives of the Water Efficiency Technical Assistance (WETA) Program.  If funding for an Objective is not being requested, indicate \"N/A\" or \"Not Applicable\" in the Activities column.\n\n  • Objective: All technical assistance funding awardees must participate in one of the Objectives with any funding allocated.\n  • Activities: Describe the tasks necessary to accomplish each of the identified project objective(s). You may insert additional rows to include as many Activities as necessary to complete the project.\n  • Performed by: Identify the individuals who will do the work for each activity by title. All individuals for whom funding is requested must be identified.\n  • Timeline: Applicants should estimate the dates for the objectives assigned. Activities cannot be reimbursed outside of the grant term."]
[null,"Use the Budget columns to identify project costs (Personnel, Contractor/Consultant, Supplies, Travel, Other) that will support the specific Objective and Activity listed. All budgeted items should demonstrate they are reasonable and adequate for the proposed project. You may add additional rows for an Activity to include associated budget items if there are more than one per budget category. The Total Requested Grant Funds cannot exceed $500,000, including indirect costs. The grant term is three years.\nMatching funds are not required by the WETA grants, but are encouraged. If providing, details must be included as indicated in the Types of Funds columns.\n\nIf the project agrees to expend 25% of the grant award amount on SDFR the applicant will need to select the check box under the question \"Will 25% of the funds be used for SDFR?\".  This will also need to be reflected in the application. \n\nThe \"Cost Summary\" table is a formula driven summary of all the costs associated with your project - do not input data in to the Cost Summary table."]

{"sheet":"WETA Budget and Work Plan","index":1,"n_rows":53,"n_cols":27,"rows_kept":53,"cut":false,"hidden":false,"merged":[[17,1,25,1],[7,2,7,3],[26,1,34,1],[35,1,43,1],[44,1,52,1],[9,2,9,3],[11,2,11,3],[1,1,1,26],[3,2,3,3],[4,2,4,3],[6,2,6,3],[8,2,8,3],[14,5,14,26],[15,1,16,1],[15,2,16,3],[15,4,16,4],[15,5,15,7],[15,9,15,11],[15,13,15,15],[15,22,15,25]]}
[]
[null,"WATER EFFICENCY TECHNICAL ASSISTANCE GRANT\n\nDirections: In the table below, list the work plan activities that will support each applicable objective and an estimate of when they will occur. For each activity, enter the associated budget information.\n   • Personnel or Contractor/Consultant: list the employees whose time and effort can be specifically identified and easily and accurately traced to the project activity; for each, include their title (e.g. accountant, Spanish translator), hours to be worked on the project and hourly rate, what type of funds are being used to pay for the individual.\n   • Supplies: list materials, supplies, and fabricated parts costing less than $5,000 per unit to be purchased; for each, include a description of the item and how it is necessary for the completion of the activity (all supplies and materials must be tied to specific project activities), cost per unit, number of units to be purchased, what type of funds are being used to pay for the items.\n   • Travel or Other: include a description of travel related expense or any expenses not covered in other budget categories and why it is necessary for the completion of the specific project activity, and what type of funds are being used to pay for the items.\n\nAll technical assistance funding awardees must participate in at least one of the Objectives. Additional Objectives may be included in the project. If funding for an Objective is not being requested, indicate \"N/A\" or \"Not Applicable\" in the Activities column. \nYou may add additional rows for an Activity to include associated budget items if there are more than one per budget category. To do so, double-click an Activity Number cell (e.g. 1.1) and an additional row will appear below."]
[]
[null,"Applicant ID:"]
[null,"Organization Name:"]
[null,"COST SUMMARY"]
[null,"Subtotal of Direct Costs:",{"$f":"V16","v":0}]
[null,"Indirect Costs*:",{"$f":"C7*0.2","v":0}]
[null,"Total Requested Grant Funds",{"$f":"C7+C8","v":0}]
[null,"Total Matching Funds:",{"$f":"AA16","v":0}]
[null,"*University of California and California State University may claim their established indirect cost rate with CDFA. \nAll other eligible organizations for Water Efficiency Technical Assistance may claim an indirect cost rate not to exceed 20 percent of total direct costs."]
[null,"Will 25% of funds will be used for SDFR? ",{"$f":"IF(B14,C9*0.25,NA())","v":{"$error":"#N/A"}}]
[]
[null,false]
[null,"WORK PLAN",null,null,null,"BUDGET (Direct Costs)"]
[null,"Objective \n","Activities \n(Provide a numbered list describing each activity that will support the objective)",null,"Estimated Timeline (Month, Year - Month, Year)","Personnel",null,null,{"$f":"SUM(I18:I53)","v":0},"Contractor/Consultant",null,null,{"$f":"SUM(M18:M53)","v":0},"Supplies",null,null,{"$f":"SUM(Q18:Q53)","v":0},"Travel",{"$f":"SUM(S18:S53)","v":0},"Other",{"$f":"SUM(U18:U53)","v":0},{"$f":"SUM(V18:V53)","v":0},"Type of Funds",null,null,null,{"$f":"SUM(AA18:AA53)","v":0}]
[null,null,null,null,null,"Performed By (Title)","Work Hours","Hourly Rate ($)","Total","Performed By (Title)","Work Hours","Hourly Rate ($)","Total","Item Description","Cost per Unit","Number of Units","Total","Item Description","Total","Item Description","Total","Requested Grant Funds","Matching (Cash)","In-Kind","Other State or Federal","Other","Total Matching"]
[null,"1. Provide on-farm, one-on-one technical assistance to farmers to evaluate irrigation system efficiency (e.g., mobile irrigation lab) and provide diagnostics, reports and recommendations to growers",1.1000000000000001,null,null,null,null,null,{"$f":"G18*H18","v":0},null,null,null,{"$f":"K18*L18","v":0},null,null,null,{"$f":"O18*P18","v":0},null,null,null,null,{"$f":"SUM(I18,M18,Q18,S18,U18)-AA18","v":0},null,null,null,null,{"$f":"SUM(W18:Z18)","v":0}]
[null,null,1.2,null,null,null,null,null,0,null,null,null,0,null,null,null,0,null,null,null,null,{"$f":"SUM(I19,M19,Q19,S19,U19)-AA19","v":0},null,null,null,null,0]
[null,null,1.3,null,null,null,null,null,0,null,null,null,0,null,null,null,0,null,null,null,null,0,null,null,null,null,0]
[null,null,1.4,null,null,null,null,null,0,null,null,null,0,null,null,null,0,null,null,null,null,0,null,null,null,null,0]
[null,null,1.5,null,null,null,null,null,0,null,null,null,0,null,null,null,0,null,null,null,null,0,null,null,null,null,0]
[null,null,1.6,null,null,null,null,null,0,null,null,null,0,null,null,null,0,null,null,null,null,0,null,null,null,null,0]
[null,null,1.7,null,null,null,null,null,0,null,null,null,0,null,null,null,0,null,null,null,null,0,null,null,null,null,0]
[null,null,1.8,null,null,null,null,null,0,null,null,null,0,null,null,null,0,null,null,null,null,0,null,null,null,null,0]
[null,null,1.9,null,null,null,null,null,0,null,null,null,0,null,null,null,0,null,null,null,null,0,null,null,null,null,0]
[null,"2. Coordinate or provide pump efficiency testing for farmers",2.1,null,null,null,null,null,0,null,null,null,0,null,null,null,0,null,null,null,null,0,null,null,null,null,0]
[null,null,2.2000000000000002,null,null,null,null,null,0,null,null,null,0,null,null,null,0,null,null,null,null,0,null,null,null,null,0]
[null,null,2.2999999999999998,null,null,null,null,null,0,null,null,null,0,null,null,null,0,null,null,null,null,0,null,null,null,null,0]
[null,null,2.4,null,null,null,null,null,0,null,null,null,0,null,null,null,0,null,null,null,null,0,null,null,null,null,0]
[null,null,2.5,null,null,null,null,null,0,null,null,null,0,null,null,null,0,null,null,null,null,0,null,null,null,null,0]
[null,null,2.6,null,null,null,null,null,0,null,null,null,0,null,null,null,0,null,null,null,null,0,null,null,null,null,0]
[null,null,2.7,null,null,null,null,null,{"$f":"G33*H33","v":0},null,null,null,{"$f":"K33*L33","v":0},null,null,null,{"$f":"O33*P33","v":0},null,null,null,null,{"$f":"SUM(I33,M33,Q33,S33,U33)-AA33","v":0},null,null,null,null,{"$f":"SUM(W33:Z33)","v":0}]
[null,null,2.8,null,null,null,null,null,{"$f":"G34*H34","v":0},null,null,null,{"$f":"K34*L34","v":0},null,null,null,{"$f":"O34*P34","v":0},null,null,null,null,{"$f":"SUM(I34,M34,Q34,S34,U34)-AA34","v":0},null,null,null,null,{"$f":"SUM(W34:Z34)","v":0}]
[null,null,2.9,null,null,null,null,null,{"$f":"G35*H35","v":0},null,null,null,{"$f":"K35*L35","v":0},null,null,null,{"$f":"O35*P35","v":0},null,null,null,null,{"$f":"SUM(I35,M35,Q35,S35,U35)-AA35","v":0},null,null,null,null,{"$f":"SUM(W35:Z35)","v":0}]
[null,"3. Provide training regarding water use efficiency and nutrient management practices and technology",3.1,null,null,null,null,null,0,null,null,null,0,null,null,null,0,null,null,null,null,0,null,null,null,null,0]
[null,null,3.2,null,null,null,null,null,0,null,null,null,0,null,null,null,0,null,null,null,null,0,null,null,null,null,0]
[null,null,3.3,null,null,null,null,null,0,null,null,null,0,null,null,null,0,null,null,null,null,0,null,null,null,null,0]
[null,null,3.4,null,null,null,null,null,0,null,null,null,0,null,null,null,0,null,null,null,null,0,null,null,null,null,0]
[null,null,3.5,null,null,null,null,null,0,null,null,null,0,null,null,null,0,null,null,null,null,0,null,null,null,null,0]
[null,null,3.6,null,null,null,null,null,0,null,null,null,0,null,null,null,0,null,null,null,null,0,null,null,null,null,0]
[null,null,3.7,null,null,null,null,null,{"$f":"G42*H42","v":0},null,null,null,{"$f":"K42*L42","v":0},null,null,null,{"$f":"O42*P42","v":0},null,null,null,null,{"$f":"SUM(I42,M42,Q42,S42,U42)-AA42","v":0},null,null,null,null,{"$f":"SUM(W42:Z42)","v":0}]
[null,null,3.8,null,null,null,null,null,{"$f":"G43*H43","v":0},null,null,null,{"$f":"K43*L43","v":0},null,null,null,{"$f":"O43*P43","v":0},null,null,null,null,{"$f":"SUM(I43,M43,Q43,S43,U43)-AA43","v":0},null,null,null,null,{"$f":"SUM(W43:Z43)","v":0}]
[null,null,3.9,null,null,null,null,null,{"$f":"G44*H44","v":0},null,null,null,{"$f":"K44*L44","v":0},null,null,null,{"$f":"O44*P44","v":0},null,null,null,null,{"$f":"SUM(I44,M44,Q44,S44,U44)-AA44","v":0},null,null,null,null,{"$f":"SUM(W44:Z44)","v":0}]
[null,"4. WETA Agreement Administrative Tasks including Reporting and Invoicing ",4.0999999999999996,null,null,null,null,null,{"$f":"G45*H45","v":0},null,null,null,{"$f":"K45*L45","v":0},null,null,null,{"$f":"O45*P45","v":0},null,null,null,null,{"$f":"SUM(I45,M45,Q45,S45,U45)-AA45","v":0},null,null,null,null,{"$f":"SUM(W45:Z45)","v":0}]
[null,null,4.2,null,null,null,null,null,{"$f":"G46*H46","v":0},null,null,null,{"$f":"K46*L46","v":0},null,null,null,{"$f":"O46*P46","v":0},null,null,null,null,{"$f":"SUM(I46,M46,Q46,S46,U46)-AA46","v":0},null,null,null,null,{"$f":"SUM(W46:Z46)","v":0}]
[null,null,4.3,null,null,null,null,null,{"$f":"G47*H47","v":0},null,null,null,{"$f":"K47*L47","v":0},null,null,null,{"$f":"O47*P47","v":0},null,null,null,null,{"$f":"SUM(I47,M47,Q47,S47,U47)-AA47","v":0},null,null,null,null,{"$f":"SUM(W47:Z47)","v":0}]
[null,null,4.4000000000000004,null,null,null,null,null,{"$f":"G48*H48","v":0},null,null,null,{"$f":"K48*L48","v":0},null,null,null,{"$f":"O48*P48","v":0},null,null,null,null,{"$f":"SUM(I48,M48,Q48,S48,U48)-AA48","v":0},null,null,null,null,{"$f":"SUM(W48:Z48)","v":0}]
[null,null,4.5,null,null,null,null,null,{"$f":"G49*H49","v":0},null,null,null,{"$f":"K49*L49","v":0},null,null,null,{"$f":"O49*P49","v":0},null,null,null,null,{"$f":"SUM(I49,M49,Q49,S49,U49)-AA49","v":0},null,null,null,null,{"$f":"SUM(W49:Z49)","v":0}]
[null,null,4.5999999999999996,null,null,null,null,null,{"$f":"G50*H50","v":0},null,null,null,{"$f":"K50*L50","v":0},null,null,null,{"$f":"O50*P50","v":0},null,null,null,null,{"$f":"SUM(I50,M50,Q50,S50,U50)-AA50","v":0},null,null,null,null,{"$f":"SUM(W50:Z50)","v":0}]
[null,null,4.7,null,null,null,null,null,{"$f":"G51*H51","v":0},null,null,null,{"$f":"K51*L51","v":0},null,null,null,{"$f":"O51*P51","v":0},null,null,null,null,{"$f":"SUM(I51,M51,Q51,S51,U51)-AA51","v":0},null,null,null,null,{"$f":"SUM(W51:Z51)","v":0}]
[null,null,4.8,null,null,null,null,null,{"$f":"G52*H52","v":0},null,null,null,{"$f":"K52*L52","v":0},null,null,null,{"$f":"O52*P52","v":0},null,null,null,null,{"$f":"SUM(I52,M52,Q52,S52,U52)-AA52","v":0},null,null,null,null,{"$f":"SUM(W52:Z52)","v":0}]
[null,null,4.9000000000000004,null,null,null,null,null,{"$f":"G53*H53","v":0},null,null,null,{"$f":"K53*L53","v":0},null,null,null,{"$f":"O53*P53","v":0},null,null,null,null,{"$f":"SUM(I53,M53,Q53,S53,U53)-AA53","v":0},null,null,null,null,{"$f":"SUM(W53:Z53)","v":0}]

{"sheet":"Solicitation 2","index":2,"n_rows":75,"n_cols":26,"rows_kept":75,"cut":false,"hidden":true,"merged":[[7,1,7,2],[0,0,0,25],[2,1,2,2],[3,1,3,2],[4,1,4,2],[6,1,6,2],[8,1,8,2],[9,1,9,2],[12,0,12,3],[12,4,12,25],[13,0,14,0],[13,1,14,2],[13,3,14,3],[13,4,13,6],[13,8,13,10],[13,12,13,14],[45,0,50,0],[51,0,56,0],[57,0,62,0],[63,0,68,0],[13,21,13,24],[15,0,20,0],[21,0,26,0],[27,0,32,0],[33,0,38,0],[39,0,44,0]]}
["CLIMATE SMART AGRICULTURE TECHNICAL ASSISTANCE GRANTS\n\nDirections: In the table below, list the work plan activities that will support each applicable objective and an estimate of when they will occur. For each activity, enter the associated budget information.\n   • Personnel or Contractor/Consultant: list the employees whose time and effort can be specifically identified and easily and accurately traced to the project activity; for each, include their title (e.g. accountant, Spanish translator), hours to be worked on the project and hourly rate, what type of funds are being used to pay for the individual.\n   • Supplies: list materials, supplies, and fabricated parts costing less than $5,000 per unit to be purchased; for each, include a description of the item and how it is necessary for the completion of the activity (all supplies and materials must be tied to specific project activities), cost per unit, number of units to be purchased, what type of funds are being used to pay for the items.\n   • Travel or Other: include a description of travel related expense or any expenses not covered in other budget categories and why it is necessary for the completion of the specific project activity, and what type of funds are being used to pay for the items.\n\nAll technical assistance funding awardees must participate in Objective 1 (Outreach), Objective 2 (Application Assistance), Objective 4 (Implementation Assistance), and Objective 8 (Reporting and Invoicing). The additional Objectives may be included in the project. If funding for an Objective is not being requested, indicate \"N/A\" or \"Not Applicable\" in the Activities column. \nYou may add additional rows for an Activity to include associated budget items if there are more than one per budget category. To do so, double-click an Activity Number cell (e.g. 1.1) and an additional row will appear below."]
[]
["Applicant ID:"]
["Organization Name:"]
["CSA Program Name (HSP or SWEEP):"]
["COST SUMMARY"]
["Subtotal of Direct Costs:",{"$f":"U14","v":0}]
["Indirect Costs*:",{"$f":"B7*0.2","v":0}]
["Total Requested Grant Funds",{"$f":"B7+B8","v":0}]
["Total Matching Funds:",{"$f":"Z14","v":0}]
["*University of California and California State University may claim their established indirect cost rate with CDFA. \nAll other eligible organizations for Climate Smart Agriculture technical assistance may claim an indirect cost rate not to exceed 20 percent of total direct costs."]
[]
["WORK PLAN",null,null,null,"BUDGET (Direct Costs)"]
["Objective \n(Required)","Activities \n(Provide a numbered list describing each activity that will support the objective)",null,"Estimated Timeline (Month, Year - Month, Year)","Personnel",null,null,{"$f":"SUM(H16:H75)","v":0},"Contractor/Consultant",null,null,{"$f":"SUM(L16:L75)","v":0},"Supplies",null,null,{"$f":"SUM(P16:P75)","v":0},"Travel",{"$f":"SUM(R16:R75)","v":0},"Other",{"$f":"SUM(T16:T75)","v":0},{"$f":"SUM(U16:U75)","v":0},"Type of Funds",null,null,null,{"$f":"SUM(Z16:Z75)","v":0}]
[null,null,null,null,"Performed By (Title)","Work Hours","Hourly Rate ($)","Total","Performed By (Title)","Work Hours","Hourly Rate ($)","Total","Item Description","Cost per Unit","Number of Units","Total","Item Description","Total","Item Description","Total","Requested Grant Funds","Matching (Cash)","In-Kind","Other State or Federal","Other","Total Matching"]
["1. Provide outreach to potential applicants",1.1000000000000001,null,null,null,null,null,{"$f":"F16*G16","v":0},null,null,null,{"$f":"J16*K16","v":0},null,null,null,{"$f":"N16*O16","v":0},null,null,null,null,{"$f":"SUM(H16,L16,P16,R16,T16)-Z16","v":0},null,null,null,null,{"$f":"SUM(V16:Y16)","v":0}]
[null,1.2,null,null,null,null,null,{"$f":"F17*G17","v":0},null,null,null,{"$f":"J17*K17","v":0},null,null,null,{"$f":"N17*O17","v":0},null,null,null,null,{"$f":"SUM(H17,L17,P17,R17,T17)-Z17","v":0},null,null,null,null,{"$f":"SUM(V17:Y17)","v":0}]
[null,1.3,null,null,null,null,null,{"$f":"F18*G18","v":0},null,null,null,0,null,null,null,0,null,null,null,null,0,null,null,null,null,0]
[null,1.4,null,null,null,null,null,0,null,null,null,0,null,null,null,0,null,null,null,null,0,null,null,null,null,0]
[null,1.5,null,null,null,null,null,{"$f":"F20*G20","v":0},null,null,null,0,null,null,null,0,null,null,null,null,0,null,null,null,null,0]
[null,1.6,null,null,null,null,null,0,null,null,null,0,null,null,null,0,null,null,null,null,0,null,null,null,null,0]
["2. Provide one-on-one application assistance (Time frame should be between December 2021 - February 2022)",2.1,null,null,null,null,null,0,null,null,null,0,null,null,null,0,null,null,null,null,0,null,null,null,null,0]
[null,2.2000000000000002,null,null,null,null,null,0,null,null,null,0,null,null,null,0,null,null,null,null,0,null,null,null,null,0]
[null,2.2999999999999998,null,null,null,null,null,0,null,null,null,0,null,null,null,0,null,null,null,null,0,null,null,null,null,0]
[null,2.4,null,null,null,null,null,0,null,null,null,0,null,null,null,0,null,null,null,null,0,null,null,null,null,0]
[null,2.5,null,null,null,null,null,0,null,null,null,0,null,null,null,0,null,null,null,null,0,null,null,null,null,0]
[null,2.6,null,null,null,null,null,0,null,null,null,0,null,null,null,0,null,null,null,null,0,null,null,null,null,0]
["3. Assist awardees with Grant Agreement establishment",3.1,null,null,null,null,null,0,null,null,null,0,null,null,null,0,null,null,null,null,0,null,null,null,null,0]
[null,3.2,null,null,null,null,null,0,null,null,null,0,null,null,null,0,null,null,null,null,0,null,null,null,null,0]
[null,3.3,null,null,null,null,null,0,null,null,null,0,null,null,null,0,null,null,null,null,0,null,null,null,null,0]
[null,3.4,null,null,null,null,null,0,null,null,null,0,null,null,null,0,null,null,null,null,0,null,null,null,null,0]
[null,3.5,null,null,null,null,null,0,null,null,null,0,null,null,null,0,null,null,null,null,0,null,null,null,null,0]
[null,3.6,null,null,null,null,null,0,null,null,null,0,null,null,null,0,null,null,null,null,0,null,null,null,null,0]
["4. Provide one-on-one implementation assistance",4.0999999999999996,null,null,null,null,null,0,null,null,null,0,null,null,null,0,null,null,null,null,0,null,null,null,null,0]
[null,4.2,null,null,null,null,null,0,null,null,null,0,null,null,null,0,null,null,null,null,0,null,null,null,null,0]
[null,4.3,null,null,null,null,null,0,null,null,null,0,null,null,null,0,null,null,null,null,0,null,null,null,null,0]
[null,4.4000000000000004,null,null,null,null,null,0,null,null,null,0,null,null,null,0,null,null,null,null,0,null,null,null,null,0]
[null,4.5,null,null,null,null,null,0,null,null,null,0,null,null,null,0,null,null,null,null,0,null,null,null,null,0]
[null,4.5999999999999996,null,null,null,null,null,0,null,null,null,0,null,null,null,0,null,null,null,null,0,null,null,null,null,0]
["5. Provide Climate Smart Agriculture (HSP or SWEEP) relevant training to agricultural operation staff",5.0999999999999996,null,null,null,null,null,0,null,null,null,0,null,null,null,0,null,null,null,null,0,null,null,null,null,0]
[null,5.2,null,null,null,null,null,0,null,null,null,0,null,null,null,0,null,null,null,null,0,null,null,null,null,0]
[null,5.3,null,null,null,null,null,0,null,null,null,0,null,null,null,0,null,null,null,null,0,null,null,null,null,0]
[null,5.4,null,null,null,null,null,0,null,null,null,0,null,null,null,0,null,null,null,null,0,null,null,null,null,0]
[null,5.5,null,null,null,null,null,0,null,null,null,0,null,null,null,0,null,null,null,null,0,null,null,null,null,0]
[null,5.6,null,null,null,null,null,0,null,null,null,0,null,null,null,0,null,null,null,null,0,null,null,null,null,0]
["6. Prepare case studies noting outcomes and benefits of CSA grants",6.1,null,null,null,null,null,0,null,null,null,0,null,null,null,0,null,null,null,null,0,null,null,null,null,0]
[null,6.2,null,null,null,null,null,0,null,null,null,0,null,null,null,0,null,null,null,null,0,null,null,null,null,0]
[null,6.3,null,null,null,null,null,0,null,null,null,0,null,null,null,0,null,null,null,null,0,null,null,null,null,0]
[null,6.4,null,null,null,null,null,0,null,null,null,0,null,null,null,0,null,null,null,null,0,null,null,null,null,0]
[null,6.5,null,null,null,null,null,0,null,null,null,0,null,null,null,0,null,null,null,null,0,null,null,null,null,0]
[null,6.6,null,null,null,null,null,0,null,null,null,0,null,null,null,0,null,null,null,null,0,null,null,null,null,0]
["7. Consult with unawarded farmers and ranchers to improve the competitiveness of the applications",7.1,null,null,null,null,null,0,null,null,null,0,null,null,null,0,null,null,null,null,0,null,null,null,null,0]
[null,7.2,null,null,null,null,null,0,null,null,null,0,null,null,null,0,null,null,null,null,0,null,null,null,null,0]
[null,7.3,null,null,null,null,null,0,null,null,null,0,null,null,null,0,null,null,null,null,0,null,null,null,null,0]
[null,7.4,null,null,null,null,null,0,null,null,null,0,null,null,null,0,null,null,null,null,0,null,null,null,null,0]
[null,7.5,null,null,null,null,null,0,null,null,null,0,null,null,null,0,null,null,null,null,0,null,null,null,null,0]
[null,7.6,null,null,null,null,null,0,null,null,null,0,null,null,null,0,null,null,null,null,0,null,null,null,null,0]
["8. Reporting and Invoicing (Time frame should be between June 1, 2021 - May 31, 2024)",8.1,null,null,null,null,null,0,null,null,null,0,null,null,null,0,null,null,null,null,0,null,null,null,null,0]
[null,8.1999999999999993,null,null,null,null,null,0,null,null,null,0,null,null,null,0,null,null,null,null,0,null,null,null,null,0]
[null,8.3000000000000007,null,null,null,null,null,0,null,null,null,0,null,null,null,0,null,null,null,null,0,null,null,null,null,0]
[null,8.4,null,null,null,null,null,0,null,null,null,0,null,null,null,0,null,null,null,null,0,null,null,null,null,0]
[null,8.5,null,null,null,null,null,0,null,null,null,0,null,null,null,0,null,null,null,null,0,null,null,null,null,0]
[null,8.6,null,null,null,null,null,0,null,null,null,0,null,null,null,0,null,null,null,null,0,null,null,null,null,0]
["9. Other Objectives within the scope of the CSA Program",9.1,null,null,null,null,null,0,null,null,null,0,null,null,null,0,null,null,null,null,0,null,null,null,null,0]
[null,9.1999999999999993,null,null,null,null,null,0,null,null,null,0,null,null,null,0,null,null,null,null,0,null,null,null,null,0]
[null,9.3000000000000007,null,null,null,null,null,0,null,null,null,0,null,null,null,0,null,null,null,null,0,null,null,null,null,0]
[null,9.4,null,null,null,null,null,0,null,null,null,0,null,null,null,0,null,null,null,null,0,null,null,null,null,0]
[null,9.5,null,null,null,null,null,0,null,null,null,0,null,null,null,0,null,null,null,null,0,null,null,null,null,0]
[null,9.6,null,null,null,null,null,0,null,null,null,0,null,null,null,0,null,null,null,null,{"$f":"SUM(H69,L69,P69,R69,T69)-Z69","v":0},null,null,null,null,0]
[null,null,null,null,null,null,null,0,null,null,null,0,null,null,null,0,null,null,null,null,{"$f":"SUM(H70,L70,P70,R70,T70)-Z70","v":0},null,null,null,null,0]
[null,null,null,null,null,null,null,0,null,null,null,0,null,null,null,0,null,null,null,null,{"$f":"SUM(H71,L71,P71,R71,T71)-Z71","v":0},null,null,null,null,0]
[null,null,null,null,null,null,null,0,null,null,null,0,null,null,null,0,null,null,null,null,0,null,null,null,null,0]
[null,null,null,null,null,null,null,0,null,null,null,0,null,null,null,0,null,null,null,null,0,null,null,null,null,0]
[null,null,null,null,null,null,null,0,null,null,null,0,null,null,null,0,null,null,null,null,0,null,null,null,null,0]
[null,null,null,null,null,null,null,0,null,null,null,0,null,null,null,0,null,null,null,null,0,null,null,null,null,0]